[Event "Stockholm Chess Challenge 2019"]
[Site "Stockholm"]
[Date "2019.04.27"]
[Round "2.3"]
[White "Blomqvist, Erik"]
[Black "Dev, Shah"]
[Result "1-0"]
[ECO "A06"]
[WhiteElo "2496"]
[BlackElo "2020"]
[Annotator "RC"]
[PlyCount "81"]
[EventDate "2019.04.26"]
[EventType "swiss"]
[EventCountry "SWE"]
[SourceTitle "playchess.com"]
[Source "ChessBase"]
[SourceQuality "1"]
[TimeControl "40/5400+30:900+30"]

1. Nf3 {[%emt 0:01:06]} d5 {[%emt 0:01:03]} 2. g3 {[%emt 0:00:11]} c6 {[%emt 0:00:08]} 3. Bg2 {[%emt 0:00:08]} Nf6 {[%emt 0:00:06]} 4. O-O {[%emt 0:00:58]} Bf5 {[%emt 0:00:12]} 5. c4 {[%emt 0:00:17]} e6 {[%emt 0:00:13]} 6. cxd5 {[%emt 0:00:23]} exd5 {[%emt 0:00:08]} 7. d3 {[%emt 0:00:13]} Be7 {[%emt 0:00:09]} 8. Qb3 {[%emt 0:00:25]} Qb6 {[%emt 0:00:20]} 9. Qc2 {[%emt 0:00:11]} Na6 {[%emt 0:00:08]} 10. Nc3 {[%emt 0:11:09]} Nb4 {[%emt 0:12:02]} 11. Qb1 {[%emt 0:09:43]} O-O {[%emt 0:12:27]} 12. a3 {[%emt 0:06:35]} Na6 {[%emt 0:00:44]} 13. e4 {[%emt 0:01:15]} dxe4 {[%emt 0:08:30]} 14. dxe4 {[%emt 0:02:49]} Bg6 {[%emt 0:00:19]} 15. Ne5 {[%emt 0:12:00]} Qb3 {[%emt 0:04:31]} 16. Nxg6 {[%emt 0:10:04]} hxg6 {[%emt 0:01:23]} 17. e5 {[%emt 0:00:15]} Nd7 {[%emt 0:05:40]} 18. f4 {[%emt 0:00:43]} Nac5 {[%emt 0:02:43]} 19. Be3 Na4 {[%emt 0:04:17]} 20. Qd1 {[%emt 0:06:53]} Qxd1 {[%emt 0:04:42]} 21. Rfxd1 {[%emt 0:01:11]} Bc5 {[%emt 0:00:11]} 22. Kf2 {[%emt 0:08:11]} Bxe3+ {[%emt 0:06:33]} 23. Kxe3 {[%emt 0:00:08]} Nab6 {[%emt 0:02:33]} 24. Ne4 {[%emt 0:00:37]} Nd5+ {[%emt 0:00:42]} 25. Kf2 {[%emt 0:00:31]} N7b6 {[%emt 0:02:06]} 26. Nc5 {[%emt 0:01:02]} Rab8 {[%emt 0:03:56]} 27. Rd4 {[%emt 0:01:24]} Rfd8 {[%emt 0:02:30]} 28. Rad1 {[%emt 0:06:37]} Kf8 {[%emt 0:02:42]} 29. b4 {[%emt 0:04:34]} Nd7 {[%emt 0:03:30]} 30. Bxd5 {[%emt 0:01:46]} Nxc5 {[%emt 0:01:01]} 31. Bxf7 {[%emt 0:01:52]} Rxd4 {[%emt 0:07:02]} 32. Rxd4 {[%emt 0:00:03]} Kxf7 {[%emt 0:00:03]} 33. bxc5 {[%emt 0:00:07]} b6 {[%emt 0:00:40]} 34. Rd7+ {[%emt 0:00:31]} Kf8 {[%emt 0:00:01]} 35. Rxa7 {[%emt 0:06:11]} bxc5 {[%emt 0:00:16]} 36. Rc7 {[%emt 0:00:31]} Rb6 {[%emt 0:01:09]} 37. Ke3 {[%emt 0:00:43]} Ra6 {[%emt 0:00:30]} 38. a4 {[%emt 0:01:58]} Rxa4 {[%emt 0:00:31]} 39. Rxc6 {[%emt 0:00:07]} Rc4 {[%emt 0:00:23]} 40. Rxg6 {[%emt 0:00:40]} Rc2 {[%emt 0:00:23]} 41. Rc6 {[%emt 0:15:27]} 1-0

[Event "Stockholm Chess Challenge 2019"]
[Site "Stockholm"]
[Date "2019.04.27"]
[Round "3.5"]
[White "Kenneskog, Theodor"]
[Black "Siddharth, Jagadeesh"]
[Result "0-1"]
[ECO "D38"]
[WhiteElo "2306"]
[BlackElo "2132"]
[Annotator "NA"]
[PlyCount "66"]
[EventDate "2019.04.26"]
[EventType "swiss"]
[EventCountry "SWE"]
[SourceTitle "playchess.com"]
[Source "ChessBase"]
[SourceQuality "1"]
[TimeControl "40/5400+30:900+30"]

1. d4 {[%emt 0:00:00]} Nf6 {[%emt 0:00:00]} 2. c4 {[%emt 0:00:00]} e6 {[%emt 0:00:00]} 3. Nf3 {[%emt 0:00:00]} d5 {[%emt 0:00:00]} 4. Nc3 {[%emt 0:00:00]} Bb4 {[%emt 0:00:06]} 5. Qa4+ {[%emt 0:00:18]} Nc6 {[%emt 0:00:11]} 6. e3 {[%emt 0:00:03]} O-O {[%emt 0:00:12]} 7. Qc2 {[%emt 0:00:04]} dxc4 {[%emt 0:00:24]} 8. Bxc4 {[%emt 0:00:06]} a6 {[%emt 0:00:07]} 9. O-O {[%emt 0:01:01]} Bd6 {[%emt 0:00:07]} 10. h3 {[%emt 0:00:40]} e5 {[%emt 0:00:20]} 11. a3 {[%emt 0:00:07]} Bd7 {[%emt 0:01:52] E51: Nimzo-Indian: Rubinstein: 4...0-0 5 Nf3 d5} 12. Ba2 {[%emt 0:10:42]} (12. Rd1 exd4 13. exd4 h6 14. Be3 Ne7 15. Ne5 b5 16. Ba2 c6 17. Ne4 Nxe4 18. Qxe4 Bf5 19. Qf3 {1-0 (37) Mamedyarov,S (2768)-Inarkiev,E (2709) Doha 2016}) 12... Qe7 $146 {[%emt 0:01:45]} ({Predecessor:} 12... exd4 13. exd4 Ne7 14. Bg5 {½-½ (42) Ibragimov,I (2637)-Onischuk,A (2650) New York 2006}) 13. Rd1 {[%emt 0:02:26]} Rad8 {[%emt 0:01:52]} 14. b4 {[%emt 0:03:33]} h6 {[%emt 0:04:46]} 15. Bb2 {[%emt 0:05:45]} Rfe8 {[%emt 0:05:47]} 16. b5 {[%emt 0:06:49]} axb5 {[%emt 0:00:49]} 17. Nxb5 {[%emt 0:00:13]} e4 {[%emt 0:00:16]} 18. Nxd6 {[%emt 0:06:08]} cxd6 {[%emt 0:01:07]} 19. Nd2 {[%emt 0:01:01]} d5 {[%emt 0:04:36]} 20. Nb3 {[%emt 0:02:22]} b6 {[%emt 0:00:20]} 21. Rdc1 {[%emt 0:01:34]} Nh7 {[%emt 0:04:08]} 22. Qe2 {[%emt 0:02:21]} Qg5 {[%emt 0:02:21]} 23. Kh2 {[%emt 0:16:43]} Re6 {[%emt 0:02:58]} 24. Nd2 {[%emt 0:00:09]} Rg6 {[%emt 0:02:02]} 25. Qf1 {[%emt 0:04:49]} Qh5 {[%emt 0:04:13]} 26. f4 $2 {[%emt 0:00:43]} (26. Bb3 $17) 26... Nf6 {[%emt 0:03:42]} 27. Rc3 {[%emt 0:21:24]} Bxh3 {[%emt 0:06:15]} 28. gxh3 {[%emt 0:00:03]} Ng4+ {[%emt 0:00:07]} 29. Kh1 {[%emt 0:00:09] [#]} Qh4 $1 {[%emt 0:00:06]} 30. Rxc6 {[%emt 0:09:28]} Nf2+ {[%emt 0:00:45]} 31. Qxf2 {[%emt 0:00:02]} Qxf2 {[%emt 0:00:10]} 32. Rxg6 {[%emt 0:00:04]} fxg6 {[%emt 0:00:11]} 33. Rd1 $19 {[%emt 0:01:47]} Qxe3 {[%emt 0:00:15]} 0-1

[Event "Stockholm Chess Challenge 2019"]
[Site "Stockholm"]
[Date "2019.04.27"]
[Round "3.7"]
[White "Fischer, Daniel"]
[Black "Kvaloy, Aksel Bu"]
[Result "0-1"]
[ECO "B90"]
[WhiteElo "2339"]
[BlackElo "2138"]
[Annotator "ChessBase"]
[PlyCount "68"]
[EventDate "2019.04.26"]
[EventType "swiss"]
[EventCountry "SWE"]
[SourceTitle "playchess.com"]
[Source "ChessBase"]
[SourceQuality "1"]
[TimeControl "40/5400+30:900+30"]

1. e4 {[%emt 0:00:00]} c5 {[%emt 0:00:00]} 2. Nf3 {[%emt 0:00:00]} d6 {[%emt 0:00:00]} 3. d4 {[%emt 0:00:00]} cxd4 {[%emt 0:00:00]} 4. Nxd4 {[%emt 0:00:00]} Nf6 {[%emt 0:00:04]} 5. Nc3 {[%emt 0:00:00]} a6 {[%emt 0:00:06]} 6. Be3 {[%emt 0:00:58]} e5 {[%emt 0:00:15]} 7. Nb3 {[%emt 0:00:08]} Be6 {[%emt 0:00:31]} 8. h3 {[%emt 0:00:29]} Be7 {[%emt 0:00:51]} 9. f4 {[%emt 0:00:17]} exf4 {[%emt 0:00:13]} 10. Bxf4 {[%emt 0:00:05]} Nc6 {[%emt 0:00:47]} 11. Qe2 {[%emt 0:01:27]} Nd7 {[%emt 0:00:26]} 12. O-O-O {[%emt 0:01:19]} Nce5 {[%emt 0:01:01]} 13. g4 {[%emt 0:01:54]} Rc8 {[%emt 0:02:38]} 14. Kb1 {[%emt 0:05:45]} O-O {[%emt 0:01:32]} 15. Nd5 {[%emt 0:01:27]} Bxd5 {[%emt 0:00:40]} 16. exd5 {[%emt 0:00:06]} Re8 {[%emt 0:01:46]} 17. Qg2 {[%emt 0:03:22]} Bg5 {[%emt 0:01:24]} 18. Bg3 {[%emt 0:09:05]} Bh4 {[%emt 0:01:55]} 19. Bh2 {[%emt 0:10:28]} g6 {[%emt 0:12:26]} 20. Be2 {[%emt 0:11:12]} Bf6 {[%emt 0:08:36]} 21. h4 {[%emt 0:07:15]} Nb6 {[%emt 0:08:38]} 22. g5 {[%emt 0:07:19]} Bg7 {[%emt 0:03:30]} 23. Nd4 {[%emt 0:08:40]} Nec4 {[%emt 0:14:20]} 24. Bf4 {[%emt 0:03:48]} Na4 {[%emt 0:08:11]} 25. Bxc4 {[%emt 0:05:18]} Rxc4 {[%emt 0:01:07]} 26. c3 {[%emt 0:01:22]} Qb6 {[%emt 0:04:04]} 27. Ka1 {[%emt 0:01:39]} Nxc3 {[%emt 0:04:31]} 28. bxc3 {[%emt 0:02:31]} Rxd4 {[%emt 0:01:59]} 29. Rxd4 {[%emt 0:07:59]} Bxd4 {[%emt 0:03:43]} 30. Bd2 {[%emt 0:01:06]} Rc8 {[%emt 0:06:56]} 31. Qh3 {[%emt 0:04:26]} Rc7 {[%emt 0:03:16]} 32. h5 {[%emt 0:01:10]} Qa5 {[%emt 0:06:21]} 33. cxd4 {[%emt 0:05:03]} Qxd2 {[%emt 0:00:25]} 34. hxg6 {[%emt 0:00:11]} Rc1+ {[%emt 0:00:39]} 0-1

[Event "Stockholm Chess Challenge 2019"]
[Site "Stockholm"]
[Date "2019.04.27"]
[Round "3.9"]
[White "Crevatin, Leo"]
[Black "Wernberg, Hugo"]
[Result "1/2-1/2"]
[ECO "D70"]
[WhiteElo "2208"]
[BlackElo "2009"]
[Annotator "NA"]
[PlyCount "92"]
[EventDate "2019.04.26"]
[EventType "swiss"]
[EventCountry "SWE"]
[SourceTitle "playchess.com"]
[Source "ChessBase"]
[SourceQuality "1"]
[TimeControl "40/5400+30:900+30"]

1. d4 {[%emt 0:00:00]} d5 {[%emt 0:00:00]} 2. c4 {[%emt 0:00:00]} c6 {[%emt 0:00:00]} 3. Nf3 {[%emt 0:00:00]} Nf6 {[%emt 0:00:00]} 4. Nbd2 {[%emt 0:00:00]} Bf5 {[%emt 0:00:00]} 5. Nh4 {[%emt 0:00:00]} Be4 {[%emt 0:00:04]} 6. Qb3 {[%emt 0:00:19] D11: Slav Defence: 3 Nf3 sidelines and 3...Nf6 4 e3 Bg4} Qb6 {[%emt 0:00:56]} 7. f3 {[%emt 0:04:38]} (7. e3 e6 8. Be2 Be7 9. Nxe4 dxe4 10. g3 c5 11. Bd2 cxd4 12. exd4 Nc6 13. Bc3 O-O-O {1-0 (49) Mamedyarov,S (2808)-So,W (2778) Leuven 2018}) 7... Bg6 {[%emt 0:00:31]} 8. e3 {[%emt 0:02:16]} Nbd7 {[%emt 0:01:57]} 9. Nxg6 {[%emt 0:06:31]} hxg6 {[%emt 0:00:11]} 10. Qxb6 {[%emt 0:00:39]} axb6 {[%emt 0:01:35]} 11. Kf2 {[%emt 0:10:38]} e6 {[%emt 0:03:45]} 12. a3 $146 {[%emt 0:07:17]} ({Predecessor:} 12. Bd3 dxc4 13. Nxc4 {½-½ (57) Thybo,J (2449)-Kollars,D (2503) Stroebeck 2017}) 12... Bd6 {[%emt 0:02:20]} 13. g3 {[%emt 0:01:13]} Ke7 {[%emt 0:04:45]} 14. cxd5 {[%emt 0:03:36]} cxd5 {[%emt 0:01:37]} 15. Nb3 {[%emt 0:01:46]} Rac8 {[%emt 0:04:40]} 16. Bd2 {[%emt 0:05:23]} g5 {[%emt 0:04:40]} 17. Rc1 {[%emt 0:23:15]} Rxc1 {[%emt 0:01:00]} 18. Bxc1 {[%emt 0:00:57]} g4 {[%emt 0:00:41]} 19. fxg4 {[%emt 0:01:13]} Nxg4+ {[%emt 0:00:48]} 20. Kg2 {[%emt 0:00:05]} Ngf6 {[%emt 0:06:10]} 21. Bd3 {[%emt 0:02:07]} Ne4 {[%emt 0:00:22]} 22. Bxe4 {[%emt 0:09:35]} dxe4 {[%emt 0:00:04]} 23. Bd2 {[%emt 0:00:31]} Rc8 {[%emt 0:00:43]} 24. Rc1 {[%emt 0:01:04]} Rxc1 {[%emt 0:00:11]} 25. Bxc1 {[%emt 0:00:22]} f5 {[%emt 0:01:44]} 26. Bd2 {[%emt 0:00:58]} Nf6 {[%emt 0:01:22]} 27. Nc1 Nd5 {[%emt 0:00:24]} 28. Ne2 {[%emt 0:02:59]} Kd7 {[%emt 0:01:26]} 29. Nc3 Nxc3 {[%emt 0:02:02]} 30. Bxc3 {[%emt 0:04:09]} g6 {[%emt 0:00:26]} 31. Kf2 {[%emt 0:00:15]} Kc6 {[%emt 0:01:58]} 32. Ke2 {[%emt 0:00:01]} Kb5 {[%emt 0:13:55]} 33. Kd2 {[%emt 0:00:17]} Ka4 {[%emt 0:01:52]} 34. Kc2 {[%emt 0:00:10]} Bf8 {[%emt 0:00:28]} 35. Bd2 {[%emt 0:01:48]} Kb5 {[%emt 0:01:15]} 36. Kb3 {[%emt 0:00:27]} Kc6 {[%emt 0:00:16]} 37. Bb4 {[%emt 0:04:56]} Bh6 {[%emt 0:00:15]} 38. Bd2 $11 {[%emt 0:00:01]} Bf8 {[%emt 0:00:17]} 39. a4 {[%emt 0:01:06]} b5 {[%emt 0:00:58]} 40. axb5+ {[%emt 0:01:51]} Kxb5 {[%emt 0:00:03]} 41. Be1 {[%emt 0:21:57]} Bh6 {[%emt 0:15:19]} 42. Bd2 {[%emt 0:00:01]} Bf8 {[%emt 0:00:25]} 43. Be1 {[%emt 0:00:00]} Bh6 {[%emt 0:00:00]} 44. Bd2 {[%emt 0:00:00]} Bf8 {[%emt 0:00:00]} 45. Be1 {[%emt 0:00:00]} Bh6 {[%emt 0:00:00]} 46. Bd2 {[%emt 0:00:00]} Bf8 {[%emt 0:00:00]} 1/2-1/2

[Event "Stockholm Chess Challenge 2019"]
[Site "Stockholm"]
[Date "2019.04.28"]
[Round "4.3"]
[White "Kucuksari, Kaan"]
[Black "Siddharth, Jagadeesh"]
[Result "1/2-1/2"]
[ECO "E04"]
[WhiteElo "2301"]
[BlackElo "2132"]
[Annotator "NA"]
[PlyCount "299"]
[EventDate "2019.04.26"]
[EventType "swiss"]
[EventCountry "SWE"]
[SourceTitle "playchess.com"]
[Source "ChessBase"]
[SourceQuality "1"]
[TimeControl "40/5400+30:900+30"]

1. d4 {[%emt 0:00:00]} Nf6 {[%emt 0:00:00]} 2. c4 {[%emt 0:00:00]} e6 {[%emt 0:00:02]} 3. Nf3 {[%emt 0:00:00]} d5 {[%emt 0:00:08]} 4. g3 {[%emt 0:02:06]} dxc4 {[%emt 0:00:08]} 5. Bg2 {[%emt 0:00:02]} Nc6 {[%emt 0:00:10]} 6. Qa4 {[%emt 0:00:03]} Bd7 {[%emt 0:00:10]} 7. Qxc4 {[%emt 0:00:07]} Na5 {[%emt 0:00:06]} 8. Qc2 {[%emt 0:02:40]} Rc8 {[%emt 0:00:08]} 9. O-O {[%emt 0:00:10]} c5 {[%emt 0:00:05]} 10. Nc3 {[%emt 0:00:25] E04: Open Catalan: 5 Nf3} (10. Qd1 Bc6 11. dxc5 Qxd1 12. Rxd1 Bxc5 13. b3 Bxf3 14. Bxf3 Bd4 15. Rxd4 Rxc1+ 16. Kg2 O-O 17. Ra4 Nc6 {0-1 (25) Guramishvili,S (2421)-Zhao,X (2553) Kazan 2013}) 10... Nc6 {[%emt 0:03:24]} 11. Rd1 {[%emt 0:01:07]} cxd4 $146 {[%emt 0:00:41]} ({Predecessor:} 11... Nxd4 12. Nxd4 cxd4 {0-1 (67) Londyn,R (2152)-Lechtynsky,J (2431) Plzen 2003}) 12. Nxd4 {[%emt 0:00:03]} Nxd4 {[%emt 0:00:26]} 13. Rxd4 {[%emt 0:00:02]} Bc5 {[%emt 0:00:22]} 14. Rh4 {[%emt 0:05:06]} Bc6 {[%emt 0:15:02]} 15. Bg5 {[%emt 0:08:22]} h6 {[%emt 0:08:04]} 16. Rd1 {[%emt 0:04:06]} Qe7 {[%emt 0:05:20]} 17. Bxc6+ {[%emt 0:11:13]} Rxc6 18. e4 Bd6 {[%emt 0:10:24]} 19. f4 {[%emt 0:03:51]} e5 {[%emt 0:02:49]} 20. Qe2 {[%emt 0:04:17]} exf4 {[%emt 0:15:48]} 21. Nd5 {[%emt 0:05:18]} Qe6 {[%emt 0:02:27]} 22. Bxf6 {[%emt 0:06:45]} gxf6 {[%emt 0:02:04]} 23. gxf4 {[%emt 0:01:03]} Rg8+ {[%emt 0:02:38]} 24. Kh1 {[%emt 0:00:02]} f5 {[%emt 0:00:19]} 25. e5 {[%emt 0:00:01]} Be7 {[%emt 0:00:09]} 26. Rh3 {[%emt 0:01:36]} Rc5 {[%emt 0:03:54]} 27. Rhd3 {[%emt 0:07:27]} Qc6 {[%emt 0:01:23]} 28. Qf3 {[%emt 0:14:15]} Rg6 {[%emt 0:10:46]} 29. b4 {[%emt 0:06:29]} Rc4 {[%emt 0:01:54]} 30. b5 {[%emt 0:00:51]} Qxb5 {[%emt 0:04:41]} 31. Rb3 {[%emt 0:05:41]} Qc6 {[%emt 0:00:51]} 32. Rxb7 {[%emt 0:01:59]} Bd8 {[%emt 0:00:27]} 33. Rb8 {[%emt 0:10:29]} Rc1 {[%emt 0:00:01]} 34. Nf6+ {[%emt 0:00:27]} Ke7 {[%emt 0:00:01]} 35. Nd5+ {[%emt 0:00:02]} Ke8 {[%emt 0:00:24]} 36. Rb1 {[%emt 0:01:17]} Rxb1 {[%emt 0:00:40]} 37. Rxb1 {[%emt 0:00:02]} Qc2 {[%emt 0:00:15]} 38. Rd1 {[%emt 0:00:40]} Qe4 {[%emt 0:01:09]} 39. Qxe4 {[%emt 0:00:30]} fxe4 {[%emt 0:00:01]} 40. Re1 {[%emt 0:00:50]} Ra6 {[%emt 0:01:29]} 41. Re2 {[%emt 0:01:38]} Ra3 {[%emt 0:00:21]} 42. Ne3 {[%emt 0:04:25]} Kd7 {[%emt 0:04:14]} 43. Nf5 {[%emt 0:02:46]} Ke6 {[%emt 0:00:44]} 44. Nxh6 {[%emt 0:00:04]} Rh3 {[%emt 0:00:17]} 45. f5+ {[%emt 0:00:25]} Ke7 {[%emt 0:00:38]} 46. Ng4 {[%emt 0:00:14]} Rf3 {[%emt 0:00:01]} 47. f6+ {[%emt 0:00:48]} Ke6 48. Rxe4 {[%emt 0:00:26]} Kf5 {[%emt 0:00:30]} 49. Ra4 {[%emt 0:02:11]} Bb6 {[%emt 0:00:20]} 50. Kg2 {[%emt 0:00:21]} Rd3 {[%emt 0:00:06]} 51. h3 {[%emt 0:04:46]} Rd2+ {[%emt 0:00:45]} 52. Kf3 {[%emt 0:00:17]} Rd3+ {[%emt 0:00:05]} 53. Kg2 {[%emt 0:00:06]} Rd2+ {[%emt 0:00:02]} 54. Kg3 {[%emt 0:00:30]} Rd3+ {[%emt 0:01:04]} 55. Kh4 {[%emt 0:00:16]} Rc3 {[%emt 0:01:33]} 56. Rb4 {[%emt 0:01:40]} Ra3 {[%emt 0:01:25]} 57. Rb2 {[%emt 0:01:27]} Rd3 {[%emt 0:00:50]} 58. Re2 {[%emt 0:01:19]} Ke6 {[%emt 0:01:05]} 59. Rc2 {[%emt 0:00:19]} Kf5 {[%emt 0:03:59]} 60. Re2 {[%emt 0:00:44]} Ke6 {[%emt 0:00:02]} 61. Rh2 {[%emt 0:00:33]} Kf5 {[%emt 0:01:06]} 62. Kh5 {[%emt 0:00:46]} Rd8 {[%emt 0:00:01]} 63. Nh6+ {[%emt 0:00:21]} Ke6 {[%emt 0:00:01]} 64. Ng4 {[%emt 0:00:26]} Kf5 {[%emt 0:00:00]} 65. Kh6 {[%emt 0:00:32]} Rg8 {[%emt 0:00:43]} 66. Kh7 {[%emt 0:00:15]} Rg5 {[%emt 0:00:09]} 67. e6 {[%emt 0:00:49]} Kxe6 {[%emt 0:00:34]} 68. Re2+ {[%emt 0:00:02]} Kf5 {[%emt 0:00:14]} 69. Re5+ {[%emt 0:00:42]} Kf4 {[%emt 0:00:12]} 70. Re7 {[%emt 0:00:51]} Rh5+ {[%emt 0:00:16]} 71. Kg7 {[%emt 0:00:16]} Rxh3 {[%emt 0:00:16]} 72. Ne5 {[%emt 0:00:43]} Bd4 {[%emt 0:00:31]} 73. Nd7 {[%emt 0:00:19]} Kf5 {[%emt 0:00:57]} 74. Rxf7 {[%emt 0:00:46]} Ra3 {[%emt 0:00:46]} 75. Re7 {[%emt 0:00:26]} Rxa2 {[%emt 0:00:11]} 76. Kf7 {[%emt 0:00:10]} Ra6 {[%emt 0:01:33]} 77. Re1 {[%emt 0:00:02]} Ra2 {[%emt 0:01:44]} 78. Ke7 {[%emt 0:00:45]} Bxf6+ {[%emt 0:00:22]} 79. Nxf6 {[%emt 0:00:01]} Rd2 {[%emt 0:01:20]} 80. Ne4 {[%emt 0:00:08]} Rd4 {[%emt 0:00:46]} 81. Nd6+ {[%emt 0:00:09]} Kf4 {[%emt 0:00:37]} 82. Ra1 {[%emt 0:00:07]} Ke5 {[%emt 0:00:44]} 83. Nf7+ {[%emt 0:00:14]} Kd5 {[%emt 0:00:12]} 84. Ra6 {[%emt 0:00:22]} Rh4 {[%emt 0:00:15]} 85. Ng5 {[%emt 0:00:30]} Kc5 {[%emt 0:00:34]} 86. Ne6+ {[%emt 0:00:17]} Kb5 {[%emt 0:00:08]} 87. Nc7+ {[%emt 0:00:08]} Kc5 {[%emt 0:00:17]} 88. Kd7 {[%emt 0:00:09]} Rh7+ {[%emt 0:00:18]} 89. Kc8 {[%emt 0:00:32]} Rh8+ {[%emt 0:00:21]} 90. Kb7 {[%emt 0:00:00]} Rh7 {[%emt 0:00:13]} 91. Rc6+ {[%emt 0:00:00]} Kd4 {[%emt 0:00:14]} 92. Ka6 {[%emt 0:00:00]} Ke5 {[%emt 0:00:20]} 93. Nb5 {[%emt 0:00:00]} Rf7 {[%emt 0:00:24]} 94. Rc5+ {[%emt 0:00:00]} Kf4 {[%emt 0:00:30]} 95. Nd6 {[%emt 0:00:01]} Rf6 {[%emt 0:00:15]} 96. Rd5 {[%emt 0:00:06]} Re6 {[%emt 0:00:13]} 97. Rf5+ {[%emt 0:00:08]} Ke3 {[%emt 0:00:09]} 98. Rd5 {[%emt 0:00:03]} Kf4 {[%emt 0:00:12]} 99. Kxa7 {[%emt 0:00:31]} Re7+ {[%emt 0:00:27]} 100. Kb6 {[%emt 0:00:02]} Re6 {[%emt 0:00:16]} 101. Rd4+ {[%emt 0:00:11]} Ke3 {[%emt 0:00:29]} 102. Kc5 {[%emt 0:00:08]} Re5+ {[%emt 0:00:09]} 103. Kc4 {[%emt 0:00:01]} Kf3 {[%emt 0:00:11]} 104. Rd3+ {[%emt 0:03:22]} Kf4 {[%emt 0:00:44]} 105. Kd4 {[%emt 0:00:25]} Ra5 {[%emt 0:00:15]} 106. Nc4 {[%emt 0:00:14]} Ra4 {[%emt 0:00:06]} 107. Rd1 {[%emt 0:00:11]} Kf3 {[%emt 0:00:21]} 108. Kd3 {[%emt 0:00:02]} Ra8 {[%emt 0:00:09]} 109. Rf1+ {[%emt 0:00:04]} Kg3 {[%emt 0:00:08]} 110. Nd2 {[%emt 0:01:04]} Ra3+ {[%emt 0:00:10]} 111. Ke2 {[%emt 0:00:06]} Ra2 {[%emt 0:00:05]} 112. Rf8 {[%emt 0:00:15]} Kg4 {[%emt 0:00:08]} 113. Ke3 {[%emt 0:00:06]} Ra3+ {[%emt 0:00:06]} 114. Kd4 {[%emt 0:00:03]} Ra4+ {[%emt 0:00:14]} 115. Nc4 {[%emt 0:00:02]} Kg5 {[%emt 0:00:18]} 116. Kd5 {[%emt 0:00:04]} Ra1 {[%emt 0:00:07]} 117. Ke6 {[%emt 0:01:07]} Ra6+ {[%emt 0:00:07]} 118. Ke5 {[%emt 0:00:01]} Kg6 {[%emt 0:00:17]} 119. Nd6 {[%emt 0:00:13]} Ra5+ {[%emt 0:00:11]} 120. Ke6 {[%emt 0:00:01]} Ra6 {[%emt 0:00:23]} 121. Rg8+ {[%emt 0:00:18]} Kh7 {[%emt 0:00:38]} 122. Rg1 {[%emt 0:00:03]} Kh6 {[%emt 0:00:10]} 123. Ke5 {[%emt 0:00:20]} Kh7 {[%emt 0:00:30]} 124. Nf5 {[%emt 0:07:04]} Ra5+ {[%emt 0:00:15]} 125. Kf6 {[%emt 0:00:02]} Ra6+ {[%emt 0:00:11]} 126. Ke5 {[%emt 0:03:13]} Ra5+ {[%emt 0:00:07]} 127. Ke6 {[%emt 0:00:08]} Ra6+ {[%emt 0:00:14]} 128. Nd6 {[%emt 0:00:30]} (128. Ke7 $14) 128... Kh6 {[%emt 0:00:17]} 129. Ke5 {[%emt 0:02:13]} Ra5+ {[%emt 0:00:23]} 130. Kf6 {[%emt 0:00:19]} Kh5 {[%emt 0:00:08]} 131. Nc4 {[%emt 0:01:05]} Ra6+ {[%emt 0:00:11]} 132. Kf5 {[%emt 0:00:06]} Kh6 {[%emt 0:00:05]} 133. Ne5 {[%emt 0:00:09]} Ra5 {[%emt 0:00:06]} 134. Rg8 {[%emt 0:00:50]} Kh7 {[%emt 0:00:27]} 135. Rc8 {[%emt 0:01:17]} Kh6 {[%emt 0:00:48]} 136. Rc7 {[%emt 0:00:14]} Rb5 {[%emt 0:00:21]} 137. Ra7 {[%emt 0:00:28]} Rc5 {[%emt 0:00:35]} 138. Kf6 {[%emt 0:01:01]} Rb5 {[%emt 0:00:44]} 139. Re7 {[%emt 0:00:39]} Ra5 {[%emt 0:00:22]} 140. Kf5 {[%emt 0:00:09]} Rb5 {[%emt 0:00:17]} 141. Ra7 {[%emt 0:00:47]} Rc5 {[%emt 0:00:12]} 142. Ra1 {[%emt 0:00:01]} Rb5 {[%emt 0:00:22]} 143. Rc1 {[%emt 0:01:00]} Ra5 {[%emt 0:00:14]} 144. Kf6 {[%emt 0:00:30]} Ra6+ {[%emt 0:00:08]} 145. Nc6 {[%emt 0:00:01]} Kh5 {[%emt 0:00:18]} 146. Rc4 {[%emt 0:00:00]} Rb6 {[%emt 0:00:34]} 147. Kf5 {[%emt 0:00:21]} Rb5+ {[%emt 0:00:12]} 148. Ne5 {[%emt 0:00:02]} Kh6 {[%emt 0:00:16]} 149. Ra4 $11 {[%emt 0:02:06]} Kg7 {[%emt 0:00:17]} 150. Ra7+ {[%emt 0:00:10]} 1/2-1/2

[Event "Stockholm Chess Challenge 2019"]
[Site "Stockholm"]
[Date "2019.04.28"]
[Round "4.5"]
[White "Sorensen, Hampus"]
[Black "Kvaloy, Aksel Bu"]
[Result "1-0"]
[ECO "D30"]
[WhiteElo "2319"]
[BlackElo "2138"]
[Annotator "NA"]
[PlyCount "55"]
[EventDate "2019.04.26"]
[EventType "swiss"]
[EventCountry "SWE"]
[SourceTitle "playchess.com"]
[Source "ChessBase"]
[SourceQuality "1"]
[TimeControl "40/5400+30:900+30"]

1. d4 {[%emt 0:00:00]} Nf6 {[%emt 0:00:00]} 2. c4 {[%emt 0:00:23]} e6 {[%emt 0:00:00]} 3. Nf3 {[%emt 0:00:13]} d5 {[%emt 0:00:05]} 4. Bg5 {[%emt 0:00:31]} Bb4+ $11 {[%emt 0:00:20]} 5. Nbd2 {[%emt 0:00:14]} dxc4 {[%emt 0:00:23]} 6. Qa4+ {[%emt 0:01:33]} Nc6 {[%emt 0:00:08]} 7. e3 {[%emt 0:00:37]} Qd5 {[%emt 0:01:37]} 8. Bxf6 {[%emt 0:04:00]} gxf6 {[%emt 0:00:11]} 9. Qc2 {[%emt 0:00:44]} b5 {[%emt 0:01:33]} 10. a3 {[%emt 0:05:46]} Ba5 {[%emt 0:06:49]} 11. O-O-O {[%emt 0:05:01]} Ke7 {[%emt 0:16:27]} 12. Rg1 {[%emt 0:07:07]} Bb6 {[%emt 0:08:34]} 13. g4 {[%emt 0:04:27]} Bb7 {[%emt 0:05:28]} 14. Bg2 {[%emt 0:05:00]} Qd7 {[%emt 0:02:24]} 15. Ne4 {[%emt 0:04:36]} Na5 {[%emt 0:07:22]} 16. g5 {[%emt 0:04:08]} Nb3+ {[%emt 0:05:05]} 17. Kb1 {[%emt 0:00:12]} fxg5 {[%emt 0:00:36]} 18. Ne5 {[%emt 0:09:09]} Qc8 {[%emt 0:00:45]} 19. Nxg5 {[%emt 0:03:10]} Bxg2 {[%emt 0:11:22]} 20. Rxg2 {[%emt 0:09:27]} f6 {[%emt 0:01:18]} 21. Nxh7 {[%emt 0:00:39]} fxe5 {[%emt 0:06:27]} 22. dxe5 {[%emt 0:00:25]} Rg8 {[%emt 0:03:56]} 23. Rxg8 {[%emt 0:01:18]} Qxg8 {[%emt 0:01:13]} 24. Nf6 {[%emt 0:00:29]} Qg2 {[%emt 0:07:46]} 25. Qh7+ {[%emt 0:00:37]} Kf8 {[%emt 0:00:06]} 26. Qh8+ {[%emt 0:00:24]} Kf7 {[%emt 0:00:08]} 27. Rd7+ {[%emt 0:00:08]} Kg6 {[%emt 0:00:08]} 28. Qh5# {[%emt 0:00:12]} 1-0

[Event "Stockholm Chess Challenge 2019"]
[Site "Stockholm"]
[Date "2019.04.28"]
[Round "4.6"]
[White "Jogstad, Martin"]
[Black "Savitha Shri B"]
[Result "*"]
[WhiteElo "2267"]
[BlackElo "1895"]
[Annotator "NA"]
[PlyCount "23"]
[EventDate "2019.04.26"]
[EventType "swiss"]
[EventCountry "SWE"]
[SourceTitle "playchess.com"]
[Source "ChessBase"]
[SourceQuality "1"]
[TimeControl "40/5400+30:900+30"]

1. c4 {[%emt 0:00:00]} c5 {[%emt 0:00:00]} 2. g3 {[%emt 0:00:20]} g6 {[%emt 0:00:00]} 3. Bg2 {[%emt 0:00:04]} Bg7 {[%emt 0:00:00]} 4. Nc3 {[%emt 0:00:05]} Nc6 $11 {[%emt 0:00:00]} 5. Nf3 {[%emt 0:01:11]} d6 {[%emt 0:00:00]} 6. O-O {[%emt 0:00:05]} e5 {[%emt 0:00:12]} 7. a3 {[%emt 0:00:06]} Nge7 {[%emt 0:00:23]} 8. b4 {[%emt 0:00:22]} e4 {[%emt 0:03:04]} 9. Ne1 {[%emt 0:00:57]} f5 {[%emt 0:00:19]} 10. Bb2 {[%emt 0:01:15]} Be6 {[%emt 0:00:30]} 11. d3 {[%emt 0:09:48]} O-O {[%emt 0:05:27]} 12. dxe4 {[%emt 0:11:06]} *